Cogmind - Beta 16.1 @@@ ROGUE MODE // 2026.04.10 @ 13:14:00 Player: Minty Result: Destroyed by B-86 Titan with Hardcell Cannon Performance ------------- Evolutions (6) 3000 Regions Visited (16) 3200 Robots Destroyed (162) 810 Value Destroyed (5787) 5787 Prototype IDs (20) 400 Alien Tech Used (0) 0 Bonus (3605) 3605 TOTAL SCORE: 16802 Bonus ------- High Alert Combat Kills 228 Follower Combat Kills 1902 Entered DSFs 500 Network Hubs Disabled 400 Built Enhanced Grunts 300 A7 Reached Mainframe 300 Met R17 at Cetus 500 Friendly Fire -525 Cogmind --------- Core Integrity 0/1150 Matter 247/300 Energy 100/100 System Corruption 6% Temperature Cool (9) Movement Core (50) Location -4/Factory Parts ------- > --- POWER (2) -------- (None) > --- PROPULSION (6) --- (None) > --- UTILITY (8) ------ Improved Hacking Suite Improved Hacking Suite Improved System Shield > --- WEAPON (3) ------- (None) > --- INVENTORY (5) ---- Large Storage Unit Matter Compressor (100) Advanced Variable Charge Gun Hypervelocity Coil Gun Peak State ------------ > --- POWER ------------ Micro Nuclear Core Light Antimatter Reactor > --- PROPULSION ------- Gravmag System Gravmag System Linear Gravjet Linear Gravjet VTOL Module Field Propulsion Drive > --- UTILITY ---------- Precision Energy Filter Improved Hacking Suite Improved Hacking Suite Improved Hacking Suite Improved Hacking Suite Improved System Shield Improved System Shield Improved System Shield > --- WEAPON ----------- Advanced KE Penetrator Advanced KE Penetrator Advanced KE Penetrator > --- INVENTORY -------- VTOL Module Large Storage Unit Cooled Plasma Rifle Advanced Variable Charge Gun [Rating: 106] Favorites ----------- Power Micro Nuclear Core Engine Light Angular Momentum Engine Power Core Micro Nuclear Core Reactor Light Antimatter Reactor Propulsion VTOL Module Leg Carbon-fiber Leg Wheel Armored Wheel Hover Unit Gravmag System Flight Unit VTOL Module Utility Hacking Suite Device Improved Heat Sink Storage Small Storage Unit Processor Core Analyzer Hackware Hacking Suite Protection Improved Light Armor Plating Weapon Advanced KE Penetrator Energy Gun Cooled Plasma Rifle Energy Cannon Advanced Beam Cannon Ballistic Gun Advanced KE Penetrator Ballistic Cannon Gauss Cannon Launcher Mini Grenade Launcher Slashing Weapon Greatsword Build | -11 -10 -10 -9 -9 -8 -7 -6 -6 -6 -6 -5 -5 -5 -5 -5 -4 ------- Run | Yrd Mat Min Mat Min Mat Fac Fac Was Fac DSF Fac Ext Cet Arc Hub Fac Slots Evolved 12 | . . . 2 . 2 2 2 . . . 2 . . . . 2 Power 1 | . . . . . . . . . . . 1 . . . . . Propulsion 4 | . . . 1 . . 2 . . . . 1 . . . . . Utility 6 | . . . 1 . 2 . 2 . . . . . . . . 1 Weapon 1 | . . . . . . . . . . . . . . . . 1 Parts Attached 164 | . 5 3 21 3 13 11 32 . . 7 12 16 15 12 3 11 Power 17 | . 1 1 1 1 . 1 5 . . . 1 2 3 . . 1 Engine 8 | . 1 . 1 . . 1 4 . . . . 1 . . . . Core 6 | . . 1 . 1 . . 1 . . . 1 1 1 . . . Reactor 3 | . . . . . . . . . . . . . 2 . . 1 Propulsion 61 | . . 2 8 . 4 2 11 . . 7 5 12 4 2 2 2 Treads . | . . . . . . . . . . . . . . . . . Leg 26 | . . 2 8 . . 1 7 . . . . 7 1 . . . Wheel 2 | . . . . . . . 2 . . . . . . . . . Hover 15 | . . . . . . . 2 . . 7 . . . 2 2 2 Flight 18 | . . . . . 4 1 . . . . 5 5 3 . . . Utility 52 | . 1 . 6 . 6 4 12 . . . 2 2 5 10 1 3 Device 13 | . . . 3 . . 1 3 . . . . . 1 4 . 1 Storage 2 | . . . . . . . 2 . . . . . . . . . Processor 15 | . 1 . 1 . 2 1 6 . . . . 1 2 . . 1 Hackware 16 | . . . . . 3 2 . . . . 2 1 . 6 1 1 Protection 6 | . . . 2 . 1 . 1 . . . . . 2 . . . Artifact . | . . . . . . . . . . . . . . . . . Weapon 34 | . 3 . 6 2 3 4 4 . . . 4 . 3 . . 5 Energy Gun 9 | . 1 . 4 . . . . . . . 3 . 1 . . . Energy Cannon 3 | . . . 2 . . . 1 . . . . . . . . . Ballistic Gun 11 | . 2 . . . . 1 1 . . . . . 2 . . 5 Ballistic Cannon 3 | . . . . . 1 1 . . . . 1 . . . . . Launcher 4 | . . . . 2 . 1 1 . . . . . . . . . Special Weapon . | . . . . . . . . . . . . . . . . . Impact Weapon . | . . . . . . . . . . . . . . . . . Slashing Weapon 4 | . . . . . 2 1 1 . . . . . . . . . Piercing Weapon . | . . . . . . . . . . . . . . . . . Special Melee Weapon . | . . . . . . . . . . . . . . . . . Unidentified Prototypes 11 | . . . 3 . . 1 1 . . . 1 . 4 . . 1 Corrupted Parts 7 | . . . 1 . . . . . . . . 1 5 . . . System Corruption 30 | . . . 1 . . . . . . . . 8 21 . . . Parts Lost 71 | . . . 1 . 2 4 21 . . . 5 7 5 1 2 23 Power 9 | . . . 1 . . 1 3 . . . 2 . . . . 2 Propulsion 32 | . . . . . 2 2 8 . . . 1 4 4 1 1 9 Utility 17 | . . . . . . . 7 . . . 1 3 . . 1 5 Weapon 13 | . . . . . . 1 3 . . . 1 . 1 . . 7 Highest Loss Streak 8 | . . . 1 . 2 2 8 . . . 5 2 3 1 2 8 To Critical Strikes . | . . . . . . . . . . . . . . . . . Average Backups 5 | . 6 5 7 8 7 7 5 3 3 3 2 3 4 4 3 4 Power . | . 1 . . . . 1 . 2 2 2 . . . . . . Propulsion . | . 3 . . . . . . . . . . . 1 . 1 . Utility 2 | . 1 3 4 6 3 3 2 1 1 . 1 . . 2 . 1 Weapon 1 | . 1 2 2 2 3 2 2 . . . . . 2 2 2 2 Tool/Special . | . . . . . . . . . . . . . . . . . Unused Backups 24 | . 10 5 2 . 1 . 1 . . . . 2 . 1 . 2 Power 3 | . 1 1 . . . . . . . . . 1 . . . . Propulsion 6 | . 4 2 . . . . . . . . . . . . . . Utility 8 | . 1 2 2 . . . 1 . . . . . . . . 2 Weapon 7 | . 4 . . . 1 . . . . . . 1 . 1 . . Tool/Special . | . . . . . . . . . . . . . . . . . Average Slot Usage (%) 83 | . 90 99 98 100 96 63 67 66 66 79 82 81 87 87 93 49 Engine 2 | . 14 2 5 4 . . 2 6 6 6 4 1 1 . . . Core 4 | . . 11 5 6 9 . 2 . . . 3 4 7 5 5 . Leg 12 | . 28 28 32 33 11 1 8 . . . . 5 . . . . Hover 2 | . . . . . . . . 13 13 20 20 . . 4 15 5 Flight 9 | . . . . . 14 11 3 . . . 11 19 31 23 17 4 Device 3 | . . . 10 11 4 . 3 6 6 11 3 . 4 4 . . Storage 5 | . 14 14 11 11 9 7 3 . . . . . . . . . Processor 13 | . 5 14 3 . 4 9 18 33 33 33 29 23 19 17 . . Hackware 9 | . . . . . 13 20 8 . . . 2 13 11 16 41 30 Protection 2 | . . . 7 11 9 . 1 . . . . . 2 . . . Energy Gun 3 | . 8 . 8 . . . . . . . 1 10 1 . . . Energy Cannon 2 | . . . 12 20 8 . . . . . . . . . . . Ballistic Gun 5 | . 19 27 . . . . . . . . . . 3 11 11 5 Slashing Weapon 1 | . . . . . 6 3 4 6 6 6 2 . . . . . Peak Build Rating 106 | . 9 11 29 29 39 34 53 41 41 66 73 67 69 75 84 106 Average Rating 38 | . 7 10 23 27 33 28 39 41 41 53 57 53 57 62 79 49 On Entrance 39 | 6 6 9 11 29 27 29 31 41 41 41 64 56 57 60 75 84 Avg Prop Armor Cover (%) 6 | . . . . . . 3 5 . . . . 6 . 9 8 7 Naked Turns . | . . . . . . . . . . . . . . . . . Heaviest Build 36 | 10 12 14 26 26 24 19 23 13 13 21 30 33 30 23 18 36 Greatest Support 102 | 20 20 20 45 45 45 19 75 21 21 54 61 102 28 23 36 36 Greatest Overweight (x) 9 | . . . . . 3 3 2 . . . . 1 9 1 . 1 Average Overweight (x) . | . . . . . . . . . . . . . . . . . Largest Inventory Capacity 10 | . 8 8 8 8 8 8 10 5 5 5 5 5 5 5 5 5 Average Capacity 6 | . 8 8 8 8 8 8 6 5 5 5 5 5 5 5 5 5 Most Carried 8 | . 8 8 8 8 8 8 8 3 3 5 5 5 5 5 5 5 Average Carried 5 | . 6 7 7 8 7 7 5 3 3 3 3 3 4 4 4 4 Final Capacity 8 | 8 8 8 8 8 8 8 5 5 5 5 5 5 5 5 5 5 Final Carried 8 | 6 8 8 8 8 8 8 3 3 3 5 4 3 5 3 3 4 Class Distribution -------------------- 25% | Scavenger-Mutant 24% | Mutant 18% | Scavenger-Sprinter 17% | Hacker-Mutant 6% | Scavenger-Gladiator Dominant Class ---------------- Mutant | -10/Materials Mutant | -10/Mines Scavenger-Mutant | -9/Materials Mutant | -9/Mines Hacker-Mutant | -8/Materials Hacker-Mutant | -7/Factory Hacker-Mutant | -6/Factory Scavenger-Gladiator | -6/Waste Scavenger-Gladiator | -6/Factory Scavenger-Gladiator | -6/DSF Scavenger-Gladiator | -5/Factory Scavenger-Sprinter | -5/Extension Scavenger-Sprinter | -5/Cetus Scavenger-Mutant | -5/Archives Wizard-Mutant | -5/Hub_04(d) Hacker-Mutant | -4/Factory Resources | -11 -10 -10 -9 -9 -8 -7 -6 -6 -6 -6 -5 -5 -5 -5 -5 -4 ----------- Run | Yrd Mat Min Mat Min Mat Fac Fac Was Fac DSF Fac Ext Cet Arc Hub Fac Matter Collected 3804 | 200 85 245 258 70 20 428 701 . . 106 205 220 391 383 114 378 Remotely . | . . . . . . . . . . . . . . . . . Salvage Created 6766 | . 109 264 1151 119 195 443 1320 . . 221 424 980 103 317 190 930 Parts 358 | . 13 19 63 11 20 22 57 . . 15 14 32 8 27 7 50 Haulers Intercepted 8 | . . . 4 . 1 . 1 . . . 1 . . . . 1 Recyclers Shooed 5 | . . 1 1 . 1 . 2 . . . . . . . . . Parts Field Recycled . | . . . . . . . . . . . . . . . . . Retrieved Matter . | . . . . . . . . . . . . . . . . . Parts Self-Destructed . | . . . . . . . . . . . . . . . . . Prevented . | . . . . . . . . . . . . . . . . . Parts Restored . | . . . . . . . . . . . . . . . . . Kills | -11 -10 -10 -9 -9 -8 -7 -6 -6 -6 -6 -5 -5 -5 -5 -5 -4 ------- Run | Yrd Mat Min Mat Min Mat Fac Fac Was Fac DSF Fac Ext Cet Arc Hub Fac Combat Hostiles Destroyed 107 | . 6 4 14 3 11 9 21 . . 2 9 13 1 . 3 11 Melee 21 | . . . . . . 2 14 . . 2 3 . . . . . Guns 37 | . 6 4 2 . . . 3 . . . 1 12 1 . 1 7 Cannons 21 | . . . 12 1 . 4 . . . . 4 . . . . . AOE 25 | . . . . 2 11 3 4 . . . 1 . . . 1 3 Classes Destroyed 19 | . 2 2 6 1 . 2 3 . . 2 . 1 . . . . Worker 10 | . 1 2 1 . . 1 1 . . . 1 . . . . 3 Builder 6 | . . . . 1 . 1 3 . . . . . . . . 1 Tunneler 3 | . . 1 . 2 . . . . . . . . . . . . Hauler 8 | . . . 4 . 1 . 1 . . . 1 . . . . 1 Recycler 11 | . . . 3 . 2 2 2 . . . . 1 . . . 1 Mechanic 1 | . . . . . . 1 . . . . . . . . . . Operator 10 | . . . 1 . . . . . . . . . . 9 . . Watcher 3 | . . . . . . . . . . . . 1 1 . . 1 Swarmer 35 | . 6 3 3 . 11 3 1 . . . 5 3 . . . . Grunt 39 | . . 1 8 3 . 4 13 . . . 3 3 . . . 4 Brawler 2 | . . . . . . . 2 . . . . . . . . . Duelist 2 | . . . 1 . . . 1 . . . . . . . . . Sentry 14 | . . . 2 . . 1 1 . . . 1 6 . . 2 1 Demolisher 1 | . . . . . . . 1 . . . . . . . . . Specialist 1 | . . . . . . . . . . 1 . . . . . . Hunter 6 | . . . . . . . 1 . . . . . . . 1 4 Programmer 4 | . . . . . . 1 1 . . . . . . . . 2 Heavy 1 | . . . . . . . . . . 1 . . . . . . Cetus Guard 1 | . . . . . . . . . . . . . 1 . . . Zionite 1 | . . . 1 . . . . . . . . . . . . . Thug 2 | . . . 2 . . . . . . . . . . . . . Guerrilla 1 | . . . . . . . . . . . . 1 . . . . Best Kill Streak 9 | . 3 5 4 4 7 4 5 . . 1 6 3 1 2 3 9 Combat Bots Only 7 | . 3 3 3 3 7 3 4 . . 1 6 3 1 . 3 4 Max Kills in Single Turn 3 | . 1 1 2 3 3 3 2 . . 1 2 1 1 1 1 3 Gunslinging . | . . . . . . . . . . . . . . . . . Exploded 3 | . . . . 2 3 3 1 . . . 1 . . . 1 2 Melee 1 | . . . . . . 1 1 . . 1 1 . . . . . Uniques/NPCs Destroyed . | . . . . . . . . . . . . . . . . . Combat | -11 -10 -10 -9 -9 -8 -7 -6 -6 -6 -6 -5 -5 -5 -5 -5 -4 -------- Run | Yrd Mat Min Mat Min Mat Fac Fac Was Fac DSF Fac Ext Cet Arc Hub Fac Hostile Shots Fired 898 | . 28 18 63 8 37 124 232 . . . 49 51 16 11 21 240 Missed 369 | . 8 5 15 2 24 59 88 . . . 15 23 6 5 6 113 Hits 529 | . 20 13 48 6 13 65 144 . . . 34 28 10 6 15 127 Melee 10 | . . . 8 . . . 2 . . . . . . . . . Projectile 519 | . 20 13 40 6 13 65 142 . . . 34 28 10 6 15 127 AOE 2 | . . . . . . . 1 . . . . . . . . 1 Critical Strikes 19 | . . . 2 . 1 . 5 . . . 1 4 1 . . 5 Damage Taken 9018 | . 148 172 733 73 207 596 2468 . . . 538 576 167 167 522 2651 Core 2389 | . 12 40 143 12 66 114 546 . . . 90 86 . 45 74 1161 Absorbed by Shields 237 | . . . . . . . . . . . . 113 111 13 . . Redirected to Shielding 6 | . . . . . 6 . . . . . . . . . . . Regen/Repaired (Parts) 274 | . . . 84 . . . 110 . . . 35 45 . . . . Core Remaining (%) 73 | 100 . 79 . 61 88 83 . . . 35 . . . . 70 . Volleys Fired 320 | . 20 30 63 6 10 28 27 . . . 12 36 13 38 7 30 Largest 3 | . 2 2 2 2 2 2 2 . . . 2 2 2 2 2 3 Hottest 240 | . 70 40 136 136 136 80 66 . . . 144 96 240 70 70 240 Shots Fired 553 | . 37 60 126 13 14 40 34 . . . 13 66 18 74 14 44 Gun 385 | . 37 60 46 . . . 23 . . . 3 66 18 74 14 44 Cannon 148 | . . . 80 11 8 39 . . . . 10 . . . . . Launcher 20 | . . . . 2 6 1 11 . . . . . . . . . Special . | . . . . . . . . . . . . . . . . . Kinetic 294 | . 24 60 . . . 39 23 . . . 10 . 9 74 14 41 Thermal 233 | . 13 . 120 11 8 . . . . . 3 66 9 . . 3 Explosive 20 | . . . . 2 6 1 11 . . . . . . . . . Electromagnetic 6 | . . . 6 . . . . . . . . . . . . . Robot Hit Streak 10 | . 3 6 8 4 7 6 8 . . . 6 7 5 10 2 9 Robot Miss Streak 8 | . 4 4 8 1 1 2 1 . . . 2 2 1 8 3 3 Penetration Max 1 | . . . . . . . . . . . . . . 1 . 1 Secondary Targets 2 | . . . . . . . . . . . . 1 . . . 1 Max Gunslinging Chain 1 | . . . . . . . . . . . . 1 . . . 1 Shots Hit Robots 376 | . 15 33 66 7 10 36 65 2 . 3 15 41 12 35 3 33 Core Hits 232 | . 7 15 32 7 17 17 37 . . 3 9 23 5 21 6 33 Critical Kills 10 | . . . . . . . . . . . . . . 2 . 8 Critical Parts Destroyed 6 | . . . . . . . . . . . . . . 4 . 2 Critical Strikes 39 | . 1 . 1 . 1 2 5 . . . 5 2 1 9 . 12 Burn 6 | . 1 . 1 . . . . . . . 1 2 1 . . . Destroy 21 | . . . . . . . . . . . . . . 9 . 12 Blast 3 | . . . . . . 1 . . . . 2 . . . . . Sever 9 | . . . . . 1 1 5 . . . 2 . . . . . Melee Attacks 81 | . . . . . 2 20 46 2 . 4 7 . . . . . Impact . | . . . . . . . . . . . . . . . . . Slashing 81 | . . . . . 2 20 46 2 . 4 7 . . . . . Piercing . | . . . . . . . . . . . . . . . . . Sneak Attacks 11 | . . . . . 1 3 5 . . 2 . . . . . . Combat Hostiles . | . . . . . . . . . . . . . . . . . Follow-up Attacks . | . . . . . . . . . . . . . . . . . Damage Inflicted 15333 | . 194 457 1477 331 893 1655 3712 115 . 294 923 1089 377 1114 316 2386 Guns 4806 | . 194 457 450 . . . 485 . . . 124 1089 377 1114 66 450 Cannons 2292 | . . . 1003 125 103 765 . . . . 296 . . . . . Explosions 4284 | . . . . 206 709 215 817 . . . 159 . . . 250 1928 Melee 3919 | . . . . . 81 675 2410 115 . 294 344 . . . . . Ramming 32 | . . . 24 . . . . . . . . . . . . 8 Kinetic 3927 | . 131 457 . . . 765 485 . . . 296 . 163 1114 66 450 Thermal 3067 | . 63 . 1349 125 103 . . . . . 124 1089 214 . . . Explosive 3989 | . . . . 206 709 215 817 . . . 159 . . . . 1883 Electromagnetic 399 | . . . 104 . . . . . . . . . . . 250 45 Impact . | . . . . . . . . . . . . . . . . . Slashing 3919 | . . . . . 81 675 2410 115 . 294 344 . . . . . Piercing . | . . . . . . . . . . . . . . . . . Highest Corruption 32 | . . . 3 3 . . . 6 6 6 3 11 32 32 15 6 Average Corruption 9 | . . . 2 3 . . . 6 6 6 3 3 22 21 11 4 Corruption Purged 21 | . . . . . . . . . . . . . . 21 . . Corruption Blocked . | . . . . . . . . . . . . . . . . . Effects 94 | . . . 4 2 . . . 2 . 4 1 17 19 37 3 5 Message Errors 26 | . . . 1 . . . . . . 2 . 9 6 8 . . Matter Fused 17 | . . . 1 . . . . . . . . 3 4 7 1 1 Heat Flow Errors 8 | . . . . . . . . . . . . . . 6 1 1 Energy Discharges 9 | . . . 1 . . . . . . . 1 2 2 2 1 . Parts Rejected 2 | . . . . . . . . 1 . . . 1 . . . . Parts Fused 1 | . . . . . . . . . . . . . . 1 . . Data Loss (minor) 10 | . . . 1 1 . . . . . 2 . 1 1 2 . 2 Data Loss (major) 6 | . . . . . . . . 1 . . . 1 1 3 . . Misfires 5 | . . . . 1 . . . . . . . . 1 3 . . Alerts 2 | . . . . . . . . . . . . . 2 . . . Misdirections 1 | . . . . . . . . . . . . . 1 . . . Weapon Failures 7 | . . . . . . . . . . . . . 1 5 . 1 Overload Shots 12 | . . . . . . . . . . . 2 3 5 . . 2 Effects 1 | . . . . . . . . . . . 1 . . . . . Energy Bleed 1 | . . . . . . . . . . . 1 . . . . . Overflow Damage 792 | . . . 23 1 2 36 500 15 . . 125 . . . . 90 Projectiles 50 | . . . 23 1 . 26 . . . . . . . . . . Explosions 211 | . . . . . 2 . 25 . . . 94 . . . . 90 Melee 531 | . . . . . . 10 475 15 . . 31 . . . . . Knockbacks 3 | . . . . . . 3 . . . . . . . . . . Impact . | . . . . . . . . . . . . . . . . . Kinetic 3 | . . . . . . 3 . . . . . . . . . . Secondary . | . . . . . . . . . . . . . . . . . Self-Inflicted Damage 540 | . . . . . 46 . 296 . . . . . . . 195 3 Shots 13 | . . . . . 3 . 8 . . . . . . . 2 . Rammed 3 | . . . . . . . . . . . . . . . . 3 Targets Rammed 9 | . . . 6 . . . . . . . . . . . . 3 Kicked 6 | . . . 6 . . . . . . . . . . . . . Crushed . | . . . . . . . . . . . . . . . . . Highest Temperature 318 | . 63 2 318 51 54 66 29 . . . 84 30 196 200 104 154 Average Temperature 58 | . 24 2 77 20 22 38 10 . . . 23 16 85 85 41 31 Received Heat Transfer 1775 | . . 45 192 39 36 204 711 . . . 108 106 9 4 9 312 Effects 4 | . . . 4 . . . . . . . . . . . . . Energy Bleed 1 | . . . 1 . . . . . . . . . . . . . Interference 3 | . . . 3 . . . . . . . . . . . . . Siege Activations . | . . . . . . . . . . . . . . . . . Martial Activations . | . . . . . . . . . . . . . . . . . Shielding Activations . | . . . . . . . . . . . . . . . . . Robots Disrupted . | . . . . . . . . . . . . . . . . . Combat Hostiles . | . . . . . . . . . . . . . . . . . Robots Corrupted 1 | . . . . . . . . . . . . . . . 1 . Combat Hostiles 1 | . . . . . . . . . . . . . . . 1 . Parts Fried 2 | . . . 1 . . . . . . . . . . . 1 . Impact Corruptions . | . . . . . . . . . . . . . . . . . Robots Melted 1 | . . . . . . . . . . . . 1 . . . . Combat Hostiles 1 | . . . . . . . . . . . . 1 . . . . Parts Melted 12 | . . . 2 . 1 . . . . . 2 7 . . . . Heat Transferred 6637 | . 259 . 2701 222 185 . . . . . 370 2350 550 . . . Parts Sabotaged . | . . . . . . . . . . . . . . . . . Parts Stolen . | . . . . . . . . . . . . . . . . . Parts Stripped . | . . . . . . . . . . . . . . . . . Power Chain Reactions 3 | . . . . . . . . . . . . . . . . 3 Alert | -11 -10 -10 -9 -9 -8 -7 -6 -6 -6 -6 -5 -5 -5 -5 -5 -4 ------- Run | Yrd Mat Min Mat Min Mat Fac Fac Was Fac DSF Fac Ext Cet Arc Hub Fac Maximum Alert Level 3 | . . . 1 . 1 2 2 . . . 1 3 2 1 3 3 Low Security (%) 50 | . 100 100 61 100 74 27 54 100 100 100 66 14 . 14 61 60 Level 1 35 | . . . 38 . 25 54 44 . . . 33 52 2 85 . 3 Level 2 12 | . . . . . . 17 . . . . . 27 97 . 33 23 Level 3 1 | . . . . . . . . . . . . 5 . . 5 12 Level 4 . | . . . . . . . . . . . . . . . . . Level 5 . | . . . . . . . . . . . . . . . . . High Security . | . . . . . . . . . . . . . . . . . Max Security . | . . . . . . . . . . . . . . . . . Peak Influence 783 | . 105 120 353 196 332 475 403 136 67 74 285 777 555 380 783 771 Initial 428 | . . 27 . 114 60 132 228 136 67 46 38 139 428 202 63 383 Average 221 | . 58 31 145 166 93 277 218 119 67 65 119 376 476 284 252 283 Influence Increases 7434 | . 160 172 656 102 371 673 771 . . 48 365 1470 447 316 830 1053 Destroy 0b10 Robot/C 3020 | . 120 100 340 60 220 260 420 . . 40 180 680 240 80 60 220 Destroy 0b10 Robot/NC 305 | . 5 30 60 15 15 25 35 . . 5 10 15 10 45 . 35 Destroy Leader 518 | . 20 20 94 10 32 50 92 . . . 22 74 10 . 30 64 Allied During Kill 621 | . . 7 15 . . 16 2 . . 2 . 303 121 89 66 . Trap Triggered on 0b10 40 | . . . . . . . 10 . . . . 30 . . . . Successful Hack 219 | . . . 25 . 13 46 8 . . . . 69 . . . 58 Select Force Hacks 130 | . . . . . . 30 . . . . . . . . . 100 Disable Machine 990 | . . . 75 . . 60 45 . . . 75 45 15 60 195 420 Destroy Structure 826 | . . . 2 17 31 51 84 . . 1 48 14 36 42 434 66 Partial Spotted 210 | . . . 15 . . 30 . . . . . 105 . . 45 15 Lose Combat Pursuer 555 | . 15 15 30 . 60 105 75 . . . 30 135 15 . . 75 Influence Decreases 6673 | . 90 242 362 240 235 498 847 295 29 41 154 990 707 639 229 1075 Entered New Map 2364 | . . 43 . 180 96 160 239 255 29 21 36 146 337 303 119 400 Time Decay 2616 | . 90 199 352 60 119 238 368 20 . . 50 404 180 326 30 180 Lost Part 673 | . . . 10 . 20 40 210 . . . 48 70 50 10 20 195 Lost Ally 720 | . . . . . . 60 30 20 . 20 20 370 140 . 60 . Purge Threat 300 | . . . . . . . . . . . . . . . . 300 Squads Dispatched 35 | . . . 2 . 2 5 8 . . . 2 3 1 . 3 9 Investigation 18 | . . . 2 . 1 3 3 . . . 1 2 1 . 1 4 Extermination 2 | . . . . . . 1 1 . . . . . . . . . Reinforcement 5 | . . . . . . . 1 . . . 1 1 . . . 2 Assault . | . . . . . . . . . . . . . . . . . Garrison 10 | . . . . . 1 1 3 . . . . . . . 2 3 Intercept . | . . . . . . . . . . . . . . . . . Searches Triggered . | . . . . . . . . . . . . . . . . . Construction Impeded 1 | . . . . . . . 1 . . . . . . . . . Haulers Reinforced 1 | . . . . . . . . . . . 1 . . . . . Active Scanning Responses . | . . . . . . . . . . . . . . . . . Cargo Convoy Interrupts . | . . . . . . . . . . . . . . . . . Stealth | -11 -10 -10 -9 -9 -8 -7 -6 -6 -6 -6 -5 -5 -5 -5 -5 -4 --------- Run | Yrd Mat Min Mat Min Mat Fac Fac Was Fac DSF Fac Ext Cet Arc Hub Fac Distress Signals 10 | . 1 . 1 . 2 . 1 . . . . 2 2 . . 1 Communications Jammed . | . . . . . . . . . . . . . . . . . Distress Signals . | . . . . . . . . . . . . . . . . . Times Spotted 253 | . 9 5 25 3 20 21 32 6 . . 12 45 17 22 5 31 Peak Tracking Total 15 | . 5 2 3 3 12 5 7 5 . . 7 9 5 2 9 15 Tactical Retreats 26 | . 1 1 2 . 1 5 4 . . . 2 6 1 . . 3 Traps | -11 -10 -10 -9 -9 -8 -7 -6 -6 -6 -6 -5 -5 -5 -5 -5 -4 ------- Run | Yrd Mat Min Mat Min Mat Fac Fac Was Fac DSF Fac Ext Cet Arc Hub Fac Traps Triggered 7 | . . . 2 . . . 1 . . . . 3 . . . 1 Indirectly . | . . . . . . . . . . . . . . . . . Trap Hack Attempts . | . . . . . . . . . . . . . . . . . Triggered . | . . . . . . . . . . . . . . . . . Disarmed . | . . . . . . . . . . . . . . . . . Reprogrammed 13 | . . . . . . . 5 . . . . 8 . . . . Reused 4 | . . . . . . . 1 . . . . 3 . . . . Traps Extracted . | . . . . . . . . . . . . . . . . . Installed 5 | . . 2 3 . . . . . . . . . . . . . Triggered 4 | . . . . . . . 1 . . . . 3 . . . . Most Traps Carried 3 | . . 3 3 . . . . . . . . . . . . . Objects Rigged 5 | . . . . . . . . . . . . . . . . 5 Exploded 3 | . . . . . . . . . . . . . . . . 3 Machines | -11 -10 -10 -9 -9 -8 -7 -6 -6 -6 -6 -5 -5 -5 -5 -5 -4 ---------- Run | Yrd Mat Min Mat Min Mat Fac Fac Was Fac DSF Fac Ext Cet Arc Hub Fac Machines Disabled 70 | . . . 5 . . 4 3 . . . 5 6 1 4 13 29 Max in Single Turn 9 | . . . 1 . . 2 1 . . . 4 1 1 1 7 9 Garrison Access 3 | . . . . . . . 1 . . . 1 . . . . 1 Network Hub 2 | . . . . . . . . . . . . . . . 2 . Machines Repaired . | . . . . . . . . . . . . . . . . . Machines Dismantled . | . . . . . . . . . . . . . . . . . Machines Sabotaged . | . . . . . . . . . . . . . . . . . Overloaded Fab Kills 9 | . . . . . . . . . . . . . . . . 9 Hacking | -11 -10 -10 -9 -9 -8 -7 -6 -6 -6 -6 -5 -5 -5 -5 -5 -4 --------- Run | Yrd Mat Min Mat Min Mat Fac Fac Was Fac DSF Fac Ext Cet Arc Hub Fac Machines Accessed 54 | . 1 1 10 1 4 5 4 . 1 . 3 14 1 . . 9 Terminals 35 | . . . 8 1 2 2 1 . 1 . 1 13 1 . . 5 Fabricators 6 | . . . . . . 2 1 . . . . . . . . 3 Repair Stations 4 | . . . 1 . . . 1 . . . 1 1 . . . . Recycling Units 2 | . 1 . . . . 1 . . . . . . . . . . Scanalyzers 2 | . . . 1 . 1 . . . . . . . . . . . Garrison Access 4 | . . . . . 1 . 1 . . . 1 . . . . 1 Total Hacks 202 | . 3 1 32 3 16 19 11 . 1 . 9 47 2 . . 58 Successful 127 | . 3 1 21 1 11 12 7 . 1 . 3 32 . . . 35 Failed 73 | . . . 11 2 4 7 4 . . . 6 15 2 . . 22 Catastrophic 5 | . . . 1 1 . . . . . . . . 1 . . 2 Database Lockouts 2 | . . . . . 1 . . . . . . . . . . 1 Manual 93 | . . . 15 2 11 6 . . . . 3 15 1 . . 40 Terminals 157 | . . . 28 3 11 10 4 . 1 . 3 43 2 . . 52 Fabricators 14 | . . . . . . 6 3 . . . . . . . . 5 Repair Stations 12 | . . . 2 . . . 3 . . . 3 4 . . . . Recycling Units 6 | . 3 . . . . 3 . . . . . . . . . . Scanalyzers 5 | . . . 2 . 3 . . . . . . . . . . . Garrison Access 7 | . . . . . 2 . 1 . . . 3 . . . . 1 Terminal Hacks 72 | . . 1 10 1 5 4 3 . 1 . 1 21 . . . 25 Part Schematic 2 | . . . . . 2 . . . . . . . . . . . Robot Schematic 1 | . . . . . . . . . . . . . . . . 1 Robot Analysis 7 | . . . 1 . 2 . . . . . . 2 . . . 2 Prototype ID Bank 4 | . . . 1 . . 1 . . . . . 1 . . . 1 Open Door 9 | . . 1 . . . . . . . . 1 7 . . . . Open DSF 1 | . . . . . . . . . 1 . . . . . . . Level Access Points 1 | . . . . . . . . . . . . . . . . 1 Branch Access Points 2 | . . . . . . . . . . . . 1 . . . 1 Emergency Access Points 1 | . . . . . . . . . . . . . . . . 1 Terminal Index 2 | . . . . . . . . . . . . . . . . 2 Fabricator Index 1 | . . . . . . 1 . . . . . . . . . . Alert Level 6 | . . . 1 . . . 1 . . . . 2 . . . 2 Unreport Threat 2 | . . . . . . . . . . . . . . . . 2 Locate Traps 8 | . . . 2 . 1 . 1 . . . . 2 . . . 2 Reprogram Traps 3 | . . . . . . . 1 . . . . 2 . . . . Dispatch Records 2 | . . . . 1 . . . . . . . . . . . 1 Maintenance Status 3 | . . . . . . 1 . . . . . 1 . . . 1 Security Status 1 | . . . 1 . . . . . . . . . . . . . Patrol Status 3 | . . . 2 . . . . . . . . 1 . . . . Recall Investigation 1 | . . . . . . . . . . . . . . . . 1 Recall Reinforcements 2 | . . . . . . . . . . . . . . . . 2 Hauler Manifests 1 | . . . . . . . . . . . . . . . . 1 Registered Components 2 | . . . . . . . . . . . . 1 . . . 1 Zone Layout 7 | . . . 2 . . 1 . . . . . 1 . . . 3 Fabricator Hacks 6 | . . . . . . 3 1 . . . . . . . . 2 Network Status 3 | . . . . . . 1 . . . . . . . . . 2 Build 3 | . . . . . . 2 1 . . . . . . . . . Repair Station Hacks 8 | . . . 2 . . . 2 . . . . 4 . . . . Scan Component 4 | . . . 1 . . . 1 . . . . 2 . . . . Repair 4 | . . . 1 . . . 1 . . . . 2 . . . . Recycling Unit Hacks 5 | . 3 . . . . 2 . . . . . . . . . . Process 2 | . 1 . . . . 1 . . . . . . . . . . Report Inventory 2 | . 2 . . . . . . . . . . . . . . . Retrieve Matter 1 | . . . . . . 1 . . . . . . . . . . Scanalyzer 3 | . . . 1 . 2 . . . . . . . . . . . Insert Component 1 | . . . . . 1 . . . . . . . . . . . Analyze 1 | . . . . . 1 . . . . . . . . . . . Retrieve Study 1 | . . . 1 . . . . . . . . . . . . . Garrison Access Hacks 3 | . . . . . . . 1 . . . 1 . . . . 1 Seal Access 3 | . . . . . . . 1 . . . 1 . . . . 1 Unauthorized Hacks 30 | . . . 8 . 4 3 . . . . 1 7 . . . 7 Terminals 21 | . . . 8 . 2 . . . . . . 7 . . . 4 Track 2 | . . . . . . . . . . . . 2 . . . . Assimilate 1 | . . . . . . . . . . . . 1 . . . . Botnet 11 | . . . 3 . 1 . . . . . . 4 . . . 3 Detonate 1 | . . . . . . . . . . . . . . . . 1 Disrupt 1 | . . . . . 1 . . . . . . . . . . . Skim 5 | . . . 5 . . . . . . . . . . . . . Fabricators 5 | . . . . . . 2 . . . . . . . . . 3 Prioritize 2 | . . . . . . 2 . . . . . . . . . . Overload 2 | . . . . . . . . . . . . . . . . 2 Recompile 1 | . . . . . . . . . . . . . . . . 1 Repair Stations 1 | . . . . . . . . . . . 1 . . . . . Patch 1 | . . . . . . . . . . . 1 . . . . . Recycling Units 1 | . . . . . . 1 . . . . . . . . . . Tunnel 1 | . . . . . . 1 . . . . . . . . . . Scanalyzers . | . . . . . . . . . . . . . . . . . Garrison Access 2 | . . . . . 2 . . . . . . . . . . . Reprogram 1 | . . . . . 1 . . . . . . . . . . . Intercept 1 | . . . . . 1 . . . . . . . . . . . Data Cores Recovered 1 | . . . 1 . . . . . . . . . . . . . Used . | . . . . . . . . . . . . . . . . . Hacking Detections 40 | . . . 10 1 4 4 3 . . . 3 9 1 . . 5 Full Trace Events 11 | . . . 1 . 1 2 3 . . . . 2 1 . . 1 Feedback Events 1 | . . . . . . . 1 . . . . . . . . . Hackware Fried 1 | . . . . . . . 1 . . . . . . . . . Feedback Blocked . | . . . . . . . . . . . . . . . . . Robot Schematics Acquired 1 | . . . . . . . . . . . . . . . . 1 Robots Built 7 | . . . . . . 6 1 . . . . . . . . . Authchips . | . . . . . . . . . . . . . . . . . Time 166 | . . . . . . 116 50 . . . . . . . . . Total Robot Build Rating 23 | . . . . . . 18 5 . . . . . . . . . Part Schematics Acquired 3 | . . . . . 3 . . . . . . . . . . . Parts Built . | . . . . . . . . . . . . . . . . . Authchips . | . . . . . . . . . . . . . . . . . Time . | . . . . . . . . . . . . . . . . . Total Part Build Rating . | . . . . . . . . . . . . . . . . . Part Studies Acquired 1 | . . . 1 . . . . . . . . . . . . . Parts Repaired 3 | . . . 1 . . . 1 . . . . 1 . . . . Time 173 | . . . 51 . . . 22 . . . . 100 . . . . Parts Recycled . | . . . . . . . . . . . . . . . . . Recycled Matter 42 | . 2 . . . . 40 . . . . . . . . . . Retrieved Matter 40 | . . . . . . 40 . . . . . . . . . . Retrieved Components . | . . . . . . . . . . . . . . . . . Parts Scanalyzed 1 | . . . . . 1 . . . . . . . . . . . Part Schematics Acquired 1 | . . . . . 1 . . . . . . . . . . . Parts Damaged . | . . . . . . . . . . . . . . . . . Bothacking | -11 -10 -10 -9 -9 -8 -7 -6 -6 -6 -6 -5 -5 -5 -5 -5 -4 ------------ Run | Yrd Mat Min Mat Min Mat Fac Fac Was Fac DSF Fac Ext Cet Arc Hub Fac Used RIF Installer . | . . . . . . . . . . . . . . . . . Robots Hacked . | . . . . . . . . . . . . . . . . . Non-combat . | . . . . . . . . . . . . . . . . . Combat . | . . . . . . . . . . . . . . . . . Robot Hacks Applied . | . . . . . . . . . . . . . . . . . Relay Couplers Released . | . . . . . . . . . . . . . . . . . Fabnet Peak Effective % . | . . . . . . . . . . . . . . . . . Robots Rewired 16 | . . . . . . . . . . . . 16 . . . . Allies Hacked . | . . . . . . . . . . . . . . . . . Hacks Repelled . | . . . . . . . . . . . . . . . . . Allies | -11 -10 -10 -9 -9 -8 -7 -6 -6 -6 -6 -5 -5 -5 -5 -5 -4 -------- Run | Yrd Mat Min Mat Min Mat Fac Fac Was Fac DSF Fac Ext Cet Arc Hub Fac Total Allies 48 | . . 3 . . . 6 3 1 . 1 1 28 5 . . . Largest Group 8 | . . 3 3 . . 3 1 1 . 1 1 8 7 4 3 . Highest-Rated Group 447 | . . 75 75 . . 90 23 31 . 90 29 359 447 447 288 . Highest-Rated Ally 159 | . . 31 31 . . 30 23 31 . 90 29 159 159 159 96 . Total Orders 8 | . . . . . . . . . . 2 . 6 . . . . STAY 2 | . . . . . . . . . . . . 2 . . . . ROAM 2 | . . . . . . . . . . 1 . 1 . . . . FOLLOW 3 | . . . . . . . . . . . . 3 . . . . RETURN 1 | . . . . . . . . . . 1 . . . . . . Ally Attacks 356 | . . 6 23 . . 16 19 14 . 3 6 156 80 23 10 . Total Damage 7923 | . . 105 274 . . 447 138 210 . 8 16 3310 2209 872 334 . Kills 53 | . . 1 6 . . 4 . 1 . . . 24 13 4 . . Allies Corrupted 3 | . . . . . . . . . . . . 1 . . 2 . Allies Melted . | . . . . . . . . . . . . . . . . . Intel | -11 -10 -10 -9 -9 -8 -7 -6 -6 -6 -6 -5 -5 -5 -5 -5 -4 ------- Run | Yrd Mat Min Mat Min Mat Fac Fac Was Fac DSF Fac Ext Cet Arc Hub Fac Active Infowar (turns) 2796 | . . . . . 140 294 271 54 4 102 139 965 144 670 . 13 Optics 1079 | . . . . . 25 294 . . . . . . 90 670 . . Sensors 208 | . . . . . . . 208 . . . . . . . . . T.N.C. 1483 | . . . . . 115 . 37 54 4 102 139 965 54 . . 13 Machine Analysis 26 | . . . . . . . 26 . . . . . . . . . Robot Analysis Total 7 | . . . 1 . 2 . . . . . . 2 . . . 2 Derelict Logs Recovered 3 | . . 2 . 1 . . . . . . . . . . . . Drone Launches 31 | . . . . . . . 13 . . 5 6 7 . . . . Drone Recoveries 26 | . . . . . . . 12 . . 4 6 4 . . . . Exploration | -11 -10 -10 -9 -9 -8 -7 -6 -6 -6 -6 -5 -5 -5 -5 -5 -4 ------------- Run | Yrd Mat Min Mat Min Mat Fac Fac Was Fac DSF Fac Ext Cet Arc Hub Fac Turns Passed 6561 | . 230 756 1020 128 282 501 845 54 4 102 139 965 371 726 75 363 Spaces Moved 5553 | 1 133 527 549 86 355 543 617 70 6 116 167 1045 538 173 154 473 Core 181 | . . . . . . . . . . . . . 1 . . 180 Treads . | . . . . . . . . . . . . . . . . . Legs 1698 | 1 133 527 549 86 82 44 127 . . . . 148 1 . . . Wheels 263 | . . . . . . . 263 . . . . . . . . . Hover 566 | . . . . . . . 68 70 6 116 72 . . . 45 189 Flight 2845 | . . . . . 273 499 159 . . . 95 897 536 173 109 104 Fastest Speed 21 | 120 120 120 110 120 34 34 34 66 66 44 23 21 21 25 28 32 Average Speed 66 | 120 120 120 117 120 55 59 85 66 66 54 31 38 27 67 30 43 Slowest Speed 595 | 120 120 120 126 120 280 280 195 66 66 66 48 120 595 108 38 116 Overloaded Moves . | . . . . . . . . . . . . . . . . . Propulsion Burnouts . | . . . . . . . . . . . . . . . . . Robots Hopped 21 | . . . . . 1 . . . . . 1 18 . . . 1 Potential Cave-ins . | . . . . . . . . . . . . . . . . . Cave-ins Triggered . | . . . . . . . . . . . . . . . . . Exploration Rate (%) 45 | 2 26 97 57 29 30 17 11 76 . 92 5 76 87 87 23 19 Regions Visited 16 Branch Regions 6 Pre-discovered Areas 4 | . . 1 2 . . 1 . . . . . . . . . . Known Exits Taken 3 | . . . . 1 . . . . 1 . . 1 . . . . Unknown Exits Taken 10 | 1 1 1 1 . 1 1 . . . . 1 . 1 1 1 . Scrap Searched 1 | . . 1 . . . . . . . . . . . . . . Spaces Dug 13 | . . . . . . 9 1 . . 1 . . . . . 2 Terrain Destroyed 654 | . . . . 20 44 69 107 . . 1 23 . 5 26 326 33 Melee 11 | . . . . . . 9 1 . . 1 . . . . . . Projectile 55 | . . . . . . 7 . . . . 5 . 5 26 10 2 AOE 588 | . . . . 20 44 53 106 . . . 18 . . . 316 31 Terrain Rammed . | . . . . . . . . . . . . . . . . . Walls Destroyed . | . . . . . . . . . . . . . . . . . Machines Disabled . | . . . . . . . . . . . . . . . . . Actions | -11 -10 -10 -9 -9 -8 -7 -6 -6 -6 -6 -5 -5 -5 -5 -5 -4 --------- Run | Yrd Mat Min Mat Min Mat Fac Fac Was Fac DSF Fac Ext Cet Arc Hub Fac Total 7698 | . 168 595 798 96 426 643 814 72 6 145 219 1519 740 703 166 588 Wait 1190 | . . 19 126 . 21 20 43 . . 12 7 295 138 468 1 40 Move 5499 | . 132 526 548 85 352 542 617 69 6 115 164 1010 537 172 153 471 Hop 19 | . . . . . 1 . . . . . 1 16 . . . 1 Pick Up 74 | . 6 5 9 . 8 7 12 . . 1 5 9 3 4 2 3 Fast Attach 93 | . . 1 4 . 6 5 21 1 . 7 6 13 14 6 . 9 Attach 80 | . 2 . 3 . 5 6 23 . . 1 8 12 9 2 2 7 Detach 55 | . . . 1 . 5 4 13 . . 2 2 8 10 4 . 6 Swap 58 | . 3 3 18 5 5 4 2 . . . 1 3 6 5 1 2 Drop 94 | . 5 9 17 . 11 7 10 . . 3 6 11 10 4 . 1 Fire 320 | . 20 30 63 6 10 28 27 . . . 12 36 13 38 7 30 Melee 81 | . . . . . 2 20 46 2 . 4 7 . . . . . Ram 3 | . . . . . . . . . . . . . . . . 3 Kick 6 | . . . 6 . . . . . . . . . . . . . Crush . | . . . . . . . . . . . . . . . . . Escape Stasis 57 | . . . . . . . . . . . . 42 . . . 15 Rewire 64 | . . . . . . . . . . . . 64 . . . . Trap 5 | . . 2 3 . . . . . . . . . . . . . Miscellaneous . | . . . . . . . . . . . . . . . . . Route ------- -11/Scrapyard -10/Materials -10/Mines (discovered 2 exits: *Mat x2) -9/Materials (discovered 4 exits: *Mat x3 / *Min) -9/Mines (discovered 3 exits: *Mat x2 / Exi) -8/Materials (discovered 2 exits: *Fac / Sto) -7/Factory (discovered 2 exits: *Fac x2) -6/Factory -6/Waste -6/Factory -6/DSF -5/Factory -5/Extension (discovered 2 exits: *Fac / *Cet) -5/Cetus (discovered 3 exits: *Fac x2 / [*Arc]) -5/Archives (discovered 3 exits: *Fac / [*Hub x2]) -5/Hub_04(d) (discovered 2 exits: *Fac x2) -4/Factory (discovered 7 exits: *Res x4 / Upp x2 / *Arm) History --------- Turn | Location | Event 1 | -11/Scrapyard | Discovered new exit (range 0) 1 | -11/Scrapyard | Entered Materials 164 | -10/Materials | Discovered new exit (range 16) 231 | -10/Materials | Entered Mines 247 | -10/Mines | Escorted by a lone wolf Derelict 267 | -10/Mines | Learned location of Storage (-8) 272 | -10/Mines | Discovered new exit (range 8) 278 | -10/Mines | Learned Materials stockpile data 300 | -10/Mines | Build established: Mutant 411 | -10/Mines | Discovered new exit (range 8) 466 | -10/Mines | Found a hidden stash of uninstalled traps 558 | -10/Mines | Learned 4 Materials zone layouts 869 | -10/Mines | Found the Drone Emporium 874 | -10/Mines | Found Prototype Device 987 | -10/Mines | Entered Materials 987 | -9/Materials | Accompanied by 3 allies 987 | -9/Materials | Evolved 2 slots: Propulsion x1, Utility x1 987 | -9/Materials | Identified Splice Drone Bay 992 | -9/Materials | Led the pair of lost Derelicts to an unsafe place 1174 | -9/Materials | Discovered new exit (range 22) 1227 | -9/Materials | Discovered new exit (range 10) 1341 | -9/Materials | Build established: Scavenger-Mutant 1662 | -9/Materials | Discovered new exit (range 15) 1829 | -9/Materials | Learned 2 Materials zone layouts 1867 | -9/Materials | Learned location of 1 exit from Recycling 1887 | -9/Materials | Repaired Adv. Beam Cannon 1894 | -9/Materials | Learned 4 Recycling zone layouts 1941 | -9/Materials | Discovered new exit (range 5) 1942 | -9/Materials | Learned location of Zion (-6) 2007 | -9/Materials | Entered Mines 2008 | -9/Mines | Identified exit to Materials 2074 | -9/Mines | Build established: Mutant 2093 | -9/Mines | Identified exit to Exiles 2135 | -9/Mines | Entered Materials 2135 | -8/Materials | Evolved 2 slots: Utility x2 2136 | -8/Materials | Identified exit to Storage 2341 | -8/Materials | Garrison activated, responded to threat 2369 | -8/Materials | Destroyed 7 combat bots 2401 | -8/Materials | Discovered new exit (range 18) 2405 | -8/Materials | Central database locked down 2417 | -8/Materials | Entered Factory 2417 | -7/Factory | Evolved 2 slots: Propulsion x2 2441 | -7/Factory | Discovered new exit (range 14) 2536 | -7/Factory | Garrison activated, responded to threat 2546 | -7/Factory | Build established: Hacker-Mutant 2787 | -7/Factory | Fabricated B-36 Bruiser? 2808 | -7/Factory | Fabricated L-41 Fighter (x3) 2833 | -7/Factory | Lost 3 allies 2895 | -7/Factory | Discovered new exit (range 15) 2918 | -7/Factory | Entered another Factory area 2918 | -6/Factory | Evolved 2 slots: Utility x2 2974 | -6/Factory | Fabricated M-22 Extractor? 3253 | -6/Factory | Hacking Suite fried by hacking feedback 3275 | -6/Factory | Repaired Greatsword 3300 | -6/Factory | Garrison activated, responded to threat 3356 | -6/Factory | Lost 3 parts (1p1n1u) 3583 | -6/Factory | Lost 3 parts (1p1n1u) 3616 | -6/Factory | Core integrity fell below 50% 3713 | -6/Factory | Lost 8 parts (1p4n1u2w) 3763 | -6/Factory | Manually triggered Chute Trap 3763 | -6/Factory | Sucked down chute 3763 | -6/Factory | Entered Waste 3764 | -6/Waste | Met a frightened Derelict 3767 | -6/Waste | Spotted C-40 Crusher 3769 | -6/Waste | Spotted C-40 Crusher 3769 | -6/Waste | Spotted C-40 Crusher 3778 | -6/Waste | EMP discharged 3783 | -6/Waste | Spotted C-40 Crusher 3789 | -6/Waste | Spotted C-40 Crusher 3796 | -6/Waste | Spotted C-40 Crusher 3806 | -6/Waste | Discovered new exit (range 14) 3817 | -6/Waste | Entered Factory 3821 | -6/Factory | Identified exit to DSF 3821 | -6/Factory | Entered DSF 3849 | -6/DSF | Discovered new exit (range 32) 3859 | -6/DSF | Additional patrols routed to DSF 3923 | -6/DSF | Entered Factory 3923 | -5/Factory | Evolved 2 slots: Power x1, Propulsion x1 4022 | -5/Factory | Lost 5 parts (2p1n1u1w) 4060 | -5/Factory | Discovered new exit (range 6) 4062 | -5/Factory | Entered Extension 4075 | -5/Extension | Disrupted transfer network 4095 | -5/Extension | Identified exit to Cetus 4161 | -5/Extension | Repaired Mic. Nuclear Core 4191 | -5/Extension | Rescued a captive Derelict 4192 | -5/Extension | Rescued a captive Derelict 4218 | -5/Extension | Repaired Neutrino Core? 4258 | -5/Extension | Build established: Scavenger-Sprinter 4448 | -5/Extension | Lost 5 allies 4485 | -5/Extension | Rescued a captive Derelict 4579 | -5/Extension | Spotted B-75 Beast 4604 | -5/Extension | Spotted B-75 Beast 4673 | -5/Extension | Rescued A7 4677 | -5/Extension | Lost 8 allies 4685 | -5/Extension | Rescued a captive Derelict 4691 | -5/Extension | Rescued a captive Derelict 4707 | -5/Extension | Rescued a captive Derelict 4885 | -5/Extension | Lost 3 allies 4907 | -5/Extension | Rescued a captive Derelict 4908 | -5/Extension | Rescued a captive Derelict 4949 | -5/Extension | Discovered new exit (range 10) 4992 | -5/Extension | System corruption reached 10% 5027 | -5/Extension | Entered Cetus 5027 | -5/Cetus | Accompanied by 7 allies (A7) 5032 | -5/Cetus | Acquired a Cetus Manufacturing Module code from A7 5040 | -5/Cetus | Spotted Cetus Guard 5040 | -5/Cetus | Spotted Cetus Guard 5042 | -5/Cetus | Spotted Cetus Guard 5044 | -5/Cetus | Spotted Cetus Guard 5066 | -5/Cetus | Destroyed Cetus Guard 5071 | -5/Cetus | Allies destroyed Cetus Guard 5082 | -5/Cetus | Lost 3 parts (2n1w) 5102 | -5/Cetus | Lost 4 allies 5160 | -5/Cetus | Started Cetus Manufacturing Module 5168 | -5/Cetus | Escorted A7 to Cetus Mainframe 5185 | -5/Cetus | Manufactured an Enhanced Grunt 5196 | -5/Cetus | Discovered new exit (range 15) 5205 | -5/Cetus | Spotted Cetus Guard 5205 | -5/Cetus | Spotted Cetus Guard 5210 | -5/Cetus | Manufactured an Enhanced Grunt 5229 | -5/Cetus | Spotted Cetus Guard 5229 | -5/Cetus | Spotted Cetus Guard 5235 | -5/Cetus | Manufactured an Enhanced Grunt 5260 | -5/Cetus | Manufactured an Enhanced Grunt 5266 | -5/Cetus | Lost 3 allies 5275 | -5/Cetus | Allies destroyed Cetus Guard 5278 | -5/Cetus | System corruption reached 30% 5282 | -5/Cetus | Allies destroyed Cetus Guard 5285 | -5/Cetus | Manufactured an Enhanced Grunt 5287 | -5/Cetus | Allies destroyed Cetus Guard 5306 | -5/Cetus | Discovered new exit (range 15) 5308 | -5/Cetus | Met Revision 17 5335 | -5/Cetus | Discovered new exit (range 17) 5398 | -5/Cetus | Entered Archives 5398 | -5/Archives | Accompanied by 4 allies (A7) 5403 | -5/Archives | Received a hacking code to weaken MAIN.C 5508 | -5/Archives | Discovered new exit (range 18) 5528 | -5/Archives | Discovered new exit (range 18) 5755 | -5/Archives | Build established: Scavenger-Mutant 5902 | -5/Archives | Discovered new exit (range 17) 6124 | -5/Archives | Entered Hub_04(d) 6124 | -5/Hub_04(d) | Accompanied by 3 allies 6124 | -5/Hub_04(d) | Discovered new exit (range 8) 6151 | -5/Hub_04(d) | Discovered new exit (range 7) 6170 | -5/Hub_04(d) | Network Hub disabled 6187 | -5/Hub_04(d) | Spotted Lightning 6190 | -5/Hub_04(d) | Spotted Lightning 6195 | -5/Hub_04(d) | Network Hub disabled 6199 | -5/Hub_04(d) | Entered Factory 6199 | -4/Factory | Evolved 2 slots: Utility x1, Weapon x1 6226 | -4/Factory | Lost 3 allies 6240 | -4/Factory | Watched by a mysterious "MATRIX" hacker. 6247 | -4/Factory | Discovered new exit (range 6) 6282 | -4/Factory | Lost 4 parts (1p1n2w) 6291 | -4/Factory | Discovered new exit (range 11) 6350 | -4/Factory | Identified exit to Upper Caves 6350 | -4/Factory | Identified exit to Armory 6352 | -4/Factory | Lost 8 parts (1p4n3w) 6370 | -4/Factory | Spotted B-86 Titan 6412 | -4/Factory | Identified exit to Research 6415 | -4/Factory | Lost 6 parts (2n3u1w) 6416 | -4/Factory | Core integrity fell below 50% 6449 | -4/Factory | Spotted B-86 Titan 6477 | -4/Factory | Central database locked down 6499 | -4/Factory | Core integrity fell below 20% 6532 | -4/Factory | Lost 4 parts (1n2u1w) 6562 | -4/Factory | Destroyed by B-86 Titan with Hardcell Cannon Last Messages --------------- >>Network(Status) Querying network status... 6 records found: (10,119) - Idle (34,106) - Loaded: Lgt. Quantum Reactor (25,40) - Loaded: Centrium Leg (2,49) - Idle (150,110) - Connection failed (81,99) - Connection failed >>Force(Overload) EM_IMPRINTER_OVERLOAD 06529_ ALERT: Suspicious activity at Fabricator F002. Dispatching Investigation squad. 06530_ Fabricator zaps K-01 Serf with an electromagnetic arc. 06531_ Fabricator zaps U-05 Engineer with an electromagnetic arc. 06532_ Fabricator zaps K-01 Serf with an electromagnetic arc. 06532_ Fabricator zaps Cogmind with an electromagnetic arc. 06532_ K-01 Serf system terminally corrupted. 06532_ U-05 Engineer system terminally corrupted. 06533_ Acquired 13 matter. Map ----- +----------------------------------------------------+ | ??####+###???# ????????? | | ???# ##### ????????? | | ???# ???????? | | ??## " ???????? | | ??#" ???????? | | ??## ##### ????????? | | ???### ###????? ?????????? | | ?????# #?????????+##????????? | | ?????# #????????????????????? | | ?????# ##???????????????????? | | ?????# T#???????????????????? | | ?????# #???????????????????? | | ?????# ##???????????????????? | | ?????# #??????????????????!?? | | ?????# ########B########????? | | ?????# """" +????? | | ###### %""F" #?????? | | # # """" #?????? | | # + """" #?????? | | # # """" #?????? | | # # ! #?????? | | # ; ? | | # # ;####+############???? | | # # #??? ??????????????? | | # ; #??? ??????????????? | | # @# #?? ?????????????? | | ###### #?? " "?????????????? | | ?????# #?# "Y" ????????????? | | ?????# #?# """ ????????????? | | ?????# #?########???????????? | | ?????# #????????????????????? | | ?????? ?????????????????????? | | ?????? ?????????????????????? | | ?????? ?????????????????????? | | ?????? ?????????????????????? | | ?????? ?????????????????????? | | ?????? ?????????????????????? | | ?????? ?????????????????????? | | ????????????????????????????? | | ????????????????????????????? | | ????????????????????????????? | | ????????????????????????????? | | ????????????????????????????? | | ????????????????????????????? | | ????????????????????????????? | | ????????????????????????????? | | ????????????????????????????? | | ????????????????????????????? | | ????????????????????????????? | | ????????????????????????????? | +----------------------------------------------------+ Best States ------------- Heat Dissipation 59 Energy Generation 31 Energy Capacity 360 Matter Stores 300 Matter Capacity 300 Sight Range 20 Robot Scan Range 15 Terrain Scan Density 210 Additional Mass Support 9 Armor Coverage 225 Utility Shielding 66 Phase Shifting 5 Evasion (%) 65 Targeting Accuracy 5 Melee Accuracy 16 Target Analysis 5 Core Analysis 6 Salvage Targeting 2 Offensive Hacking 58 Defensive Hacking 36 Authchip Count 1 Item Schematics ----------------- Hacking Suite | -8/Materials | Hacked VTOL Module | -8/Materials | Hacked Xenon Bombardment Thruster | -8/Materials | Scanalyzed Robot Schematics ------------------ A-02 Transporter | -4/Factory | Hacked Fabricated ------------ B-36 Bruiser | x3 | -7/Factory | Preloaded L-41 Fighter | x3 | -7/Factory | Preloaded M-22 Extractor | x1 | -6/Factory | Preloaded Repaired ---------- Adv. Beam Cannon | 35% | -9/Materials Greatsword | 21% | -6/Factory Mic. Nuclear Core | 10% | -5/Extension Studied --------- Aluminum Leg | -9/Materials | Hacked Alien Tech Used ----------------- None Achievements -------------- None Challenges ------------ None Game ------ Seed LargeAbsorptionInjector Manual? 0 Play Time 01:10:50 Cumulative 1300.9 hours Start 2026.04.08 @ 19:39:00 End 2026.04.10 @ 13:14:00 Sessions 2 Manual Loads 0 Difficulty Rogue Special Mode None Game No. 1598 Rogue 1314 Adventurer 124 Explorer 160 Win Type - Total 64 Types 50/0/8/4/1/0/0/1/0/0 Lore% 93 Gallery% 84 Achievement% 70 Wizard Run 0 Options --------- Layout 0 ASCII 0 Keyboard 1 Movement Numpad Keybinds 0 Fullscreen 2 Font 18/X11 Map View 76x50 Zoom Use 0% Tactical HUD 1 Map Filters NONE Filters NONE Steam 1 RUN: 221c7fea-5e7c-4ed0-ba59-27c5d1aa45a3